Cogmind - Beta 15 @@@ ROGUE MODE // 2025.05.06 @ 14:01:01 Player: MolePlayingNice Result: Smashed by cave-in Performance ------------- Evolutions (2) 1000 Regions Visited (4) 800 Robots Destroyed (57) 285 Value Destroyed (1975) 1975 Prototype IDs (4) 80 Alien Tech Used (0) 0 Bonus (44) 44 TOTAL SCORE: 4184 Bonus ------- High Alert Combat Kills 11 Follower Combat Kills 68 Friendly Fire -35 Cogmind --------- Core Integrity 0/550 Matter 282/300 Energy 45/100 System Corruption 19% Temperature Cool (57) Movement Treading (240) Ox1 Location -8/Storage Parts ------- > --- POWER (1) -------- (None) > --- PROPULSION (4) --- Light Treads Light Treads Armored Wheel > --- UTILITY (4) ------ High-capacity Storage Unit Light Armor Plating > --- WEAPON (2) ------- Enhanced Autogun > --- INVENTORY (20) --- Light Deuterium Engine Armored Wheel Aerolev Unit Aerolev Unit Aerolev Unit Aerolev Unit Aerolev Unit Improved VTOL Module Improved VTOL Module Medium Storage Unit Actuator Array Hardened Heavy Armor Plating Enhanced Autogun Enhanced Autogun Enhanced Autogun Enhanced Autogun Enhanced Autogun Rocket Launcher Rocket Launcher Peak State ------------ > --- POWER ------------ Nuclear Core > --- PROPULSION ------- Light Treads Armored Wheel Armored Wheel Improved VTOL Module > --- UTILITY ---------- Improved Heat Sink High-capacity Storage Unit Structural Scanner Improved Signal Interpreter > --- WEAPON ----------- Enhanced Autogun Enhanced Autogun > --- INVENTORY -------- Light Deuterium Engine Armored Wheel Armored Wheel Aerolev Unit Aerolev Unit Aerolev Unit Aerolev Unit Aerolev Unit Aerolev Unit Aerolev Unit Medium Storage Unit Actuator Array Hardened Heavy Armor Plating Improved Medium Laser Heavy Assault Rifle Enhanced Autogun Enhanced Autogun Enhanced Autogun Mining Laser [Rating: 34] Favorites ----------- Power Ion Engine Engine Ion Engine Power Core Nuclear Core Propulsion Light Treads Treads Light Treads Leg Aluminum Leg Wheel Armored Wheel Hover Unit Aerolev Unit Flight Unit Improved VTOL Module Utility Disposable Heat Sink Device Disposable Heat Sink Storage High-capacity Storage Unit Processor Improved Signal Interpreter Protection Light Armor Plating Weapon Subdweller Machine Gun Energy Gun Medium Laser Energy Cannon Advanced Beam Cannon Ballistic Gun Subdweller Machine Gun Ballistic Cannon Improved Light Cannon Special Weapon Mining Laser Build | -11 -10 -10 -8 -8 ------- Run | Yrd Mat Sub Mat Sto Slots Evolved 4 | . . . 4 . Power . | . . . . . Propulsion 2 | . . . 2 . Utility 2 | . . . 2 . Weapon . | . . . . . Parts Attached 56 | . 3 15 30 8 Power 5 | . . 2 3 . Engine 3 | . . 2 1 . Core 2 | . . . 2 . Reactor . | . . . . . Propulsion 21 | . . 5 14 2 Treads 11 | . . 2 8 1 Leg 2 | . . . 2 . Wheel 6 | . . 3 2 1 Hover 1 | . . . 1 . Flight 1 | . . . 1 . Utility 16 | . 1 5 7 3 Device 9 | . 1 3 4 1 Storage 1 | . . . 1 . Processor 1 | . . . 1 . Hackware . | . . . . . Protection 5 | . . 2 1 2 Artifact . | . . . . . Weapon 14 | . 2 3 6 3 Energy Gun . | . . . . . Energy Cannon 3 | . 2 1 . . Ballistic Gun 9 | . . 2 5 2 Ballistic Cannon 1 | . . . 1 . Launcher . | . . . . . Special Weapon 1 | . . . . 1 Impact Weapon . | . . . . . Slashing Weapon . | . . . . . Piercing Weapon . | . . . . . Special Melee Weapon . | . . . . . Unidentified Prototypes 4 | . 1 . 3 . Parts Lost 20 | . . 6 8 6 Power 4 | . . 1 2 1 Propulsion 8 | . . 3 3 2 Utility 5 | . . 1 2 2 Weapon 3 | . . 1 1 1 Highest Loss Streak 5 | . . 2 5 5 To Critical Strikes . | . . . . . Average Backups 12 | 6 7 5 14 18 Power . | 1 1 . 1 1 Propulsion 3 | 4 3 . 3 7 Utility 3 | . . 1 4 3 Weapon 4 | 1 2 3 5 7 Tool/Special . | . . . . . Unused Backups 48 | . 8 6 13 21 Power 3 | . 1 1 . 1 Propulsion 15 | . 4 1 1 9 Utility 12 | . 1 2 6 3 Weapon 18 | . 2 2 6 8 Tool/Special . | . . . . . Average Slot Usage (%) 92 | . 92 91 89 98 Engine 7 | . 14 13 1 8 Core 3 | . . . 6 . Treads 16 | . . 11 21 17 Leg 4 | . 28 5 2 . Wheel 8 | . . 9 6 18 Device 16 | . 6 12 19 17 Storage 7 | . 14 4 8 9 Processor 2 | . . . 4 . Protection 3 | . . 5 . 9 Energy Gun 1 | . 17 . . . Energy Cannon 5 | . 10 16 . . Ballistic Gun 13 | . . 11 15 17 Ballistic Cannon 1 | . . . 2 . Peak Build Rating 34 | 6 13 14 34 28 Average Rating 18 | 6 8 12 20 25 On Entrance 13 | 6 6 13 12 28 Naked Turns . | . . . . . Heaviest Build 58 | 13 19 31 57 58 Greatest Support 80 | 20 20 40 80 40 Greatest Overweight (x) 18 | . . 4 18 2 Average Overweight (x) . | . . . 1 1 Largest Inventory Capacity 20 | 8 8 8 20 20 Average Capacity 14 | 8 8 5 19 20 Most Carried 20 | 6 8 8 20 20 Average Carried 12 | 6 7 5 15 19 Final Capacity 20 | 8 8 5 20 20 Final Carried 20 | 6 8 5 20 20 Class Distribution -------------------- 55% | Scavenger-Mutant 23% | Mutant 13% | Scavenger-Skirmisher 6% | Subdweller-Mutant Dominant Class ---------------- Mutant | -10/Materials Mutant | -10/Subcaves Scavenger-Mutant | -8/Materials Scavenger-Mutant | -8/Storage Resources | -11 -10 -10 -8 -8 ----------- Run | Yrd Mat Sub Mat Sto Matter Collected 1779 | 200 30 213 938 398 Remotely . | . . . . . Salvage Created 2499 | . 120 361 1216 802 Parts 113 | . 5 22 52 34 Haulers Intercepted 6 | . 1 . 4 1 Recyclers Shooed 7 | . 1 . 4 2 Parts Field Recycled . | . . . . . Retrieved Matter . | . . . . . Parts Self-Destructed . | . . . . . Prevented . | . . . . . Kills | -11 -10 -10 -8 -8 ------- Run | Yrd Mat Sub Mat Sto Combat Hostiles Destroyed 41 | . 2 10 18 11 Guns 32 | . 2 3 16 11 Cannons 7 | . . 5 2 . Classes Destroyed 14 | . 2 2 8 2 Worker 1 | . . . 1 . Builder 1 | . . . 1 . Hauler 6 | . 1 . 4 1 Recycler 4 | . . . 3 1 Mechanic 1 | . . . 1 . Operator 1 | . . . 1 . Watcher 2 | . . . 1 1 Grunt 18 | . 2 . 12 4 Brawler 1 | . . . . 1 Duelist 1 | . . . . 1 Sentry 9 | . . . 4 5 Hunter 2 | . . . 2 . Artisan 2 | . . 2 . . Subdweller 10 | . . 10 . . Best Kill Streak 8 | . 3 2 5 8 Combat Bots Only 5 | . 2 2 5 5 Max Kills in Single Turn 1 | . 1 1 1 1 Gunslinging . | . . . . . Exploded . | . . . . . Melee . | . . . . . Uniques/NPCs Destroyed . | . . . . . Combat | -11 -10 -10 -8 -8 -------- Run | Yrd Mat Sub Mat Sto Hostile Shots Fired 241 | . 14 75 107 45 Missed 60 | . 6 21 20 13 Hits 181 | . 8 54 87 32 Melee 1 | . . . . 1 Projectile 180 | . 8 54 87 31 AOE 3 | . . 3 . . Critical Strikes 6 | . . 1 2 3 Damage Taken 4389 | . 87 1465 1382 1455 Core 848 | . 10 232 245 361 Absorbed by Shields . | . . . . . Core Remaining (%) 51 | 100 . 3 . . Volleys Fired 234 | . 17 55 101 61 Largest 2 | . 2 2 2 2 Hottest 136 | . 136 136 63 100 Shots Fired 417 | . 33 104 196 84 Gun 290 | . 31 26 155 78 Cannon 121 | . 2 78 41 . Launcher . | . . . . . Special 6 | . . . . 6 Kinetic 300 | . . 26 196 78 Thermal 117 | . 33 78 . 6 Explosive . | . . . . . Electromagnetic . | . . . . . Robot Hit Streak 39 | . 10 20 39 18 Robot Miss Streak 3 | . 3 2 3 2 Penetration Max . | . . . . . Secondary Targets 4 | . 1 . 2 1 Max Gunslinging Chain 1 | . 1 . 1 1 Shots Hit Robots 297 | . 21 77 140 59 Core Hits 105 | . 6 17 56 26 Critical Kills 5 | . . 3 2 . Critical Parts Destroyed 2 | . . . 1 1 Critical Strikes 9 | . . 4 4 1 Meltdown 2 | . . 2 . . Destroy 6 | . . 2 3 1 Blast 1 | . . . 1 . Melee Attacks . | . . . . . Impact . | . . . . . Slashing . | . . . . . Piercing . | . . . . . Sneak Attacks . | . . . . . Combat Hostiles . | . . . . . Follow-up Attacks . | . . . . . Damage Inflicted 5459 | . 251 1568 2504 1136 Guns 3702 | . 251 364 1971 1116 Cannons 1737 | . . 1204 533 . Explosions 20 | . . . . 20 Melee . | . . . . . Ramming . | . . . . . Kinetic 3984 | . . 364 2504 1116 Thermal 1455 | . 251 1204 . . Explosive 20 | . . . . 20 Electromagnetic . | . . . . . Impact . | . . . . . Slashing . | . . . . . Piercing . | . . . . . Highest Corruption 18 | . 2 4 3 18 Average Corruption 3 | . 2 2 3 3 Corruption Purged . | . . . . . Corruption Blocked . | . . . . . Effects 31 | . 1 15 5 10 Message Errors 6 | . . 2 1 3 Matter Fused 11 | . . 7 2 2 Heat Flow Errors 4 | . 1 1 . 2 Energy Discharges 2 | . . . 2 . Data Loss (minor) 5 | . . 3 . 2 Data Loss (major) 2 | . . 1 . 1 Misfires 1 | . . 1 . . Overload Shots . | . . . . . Overflow Damage . | . . . . . Projectiles . | . . . . . Explosions . | . . . . . Melee . | . . . . . Knockbacks 6 | . . . 6 . Impact . | . . . . . Kinetic 6 | . . . 6 . Secondary . | . . . . . Self-Inflicted Damage 70 | . . . . 70 Shots 1 | . . . . 1 Rammed . | . . . . . Targets Rammed . | . . . . . Kicked . | . . . . . Crushed . | . . . . . Highest Temperature 321 | . 321 170 26 189 Average Temperature 57 | . 119 62 8 24 Received Heat Transfer 891 | . 48 96 486 261 Siege Activations . | . . . . . Martial Activations . | . . . . . Shielding Activations . | . . . . . Robots Disrupted . | . . . . . Combat Hostiles . | . . . . . Robots Corrupted . | . . . . . Combat Hostiles . | . . . . . Parts Fried . | . . . . . Impact Corruptions . | . . . . . Robots Melted 2 | . . 2 . . Combat Hostiles 2 | . . 2 . . Parts Melted 6 | . 1 4 . 1 Heat Transferred 2840 | . 657 2183 . . Parts Sabotaged . | . . . . . Parts Stolen . | . . . . . Parts Stripped . | . . . . . Power Chain Reactions . | . . . . . Alert | -11 -10 -10 -8 -8 ------- Run | Yrd Mat Sub Mat Sto Maximum Alert Level 2 | . . . . 2 Low Security (%) 85 | 100 100 . 100 33 Level 1 11 | . . . . 51 Level 2 3 | . . . . 15 Level 3 . | . . . . . Level 4 . | . . . . . Level 5 . | . . . . . High Security . | . . . . . Max Security . | . . . . . Peak Influence 434 | . 47 . 180 434 Initial 74 | . . . . 74 Average 94 | . 15 . 49 270 Influence Increases 1315 | . 87 30 616 582 Destroy 0b10 Robot/C 660 | . 40 . 360 260 Destroy 0b10 Robot/NC 80 | . 5 . 60 15 Destroy Leader 176 | . 12 . 90 74 Allied During Kill 16 | . . . . 16 Successful Hack 26 | . . . 18 8 Select Force Hacks 30 | . 30 . . . Disable Machine 45 | . . . 15 30 Destroy Structure 42 | . . . 13 29 Lose Combat Pursuer 240 | . . 30 60 150 Influence Decreases 961 | . 87 28 442 404 Entered New Map 104 | . . . 2 102 Time Decay 744 | . 87 28 407 222 Lost Part 93 | . . . 33 60 Lost Ally 20 | . . . . 20 Squads Dispatched 9 | . 2 . 2 5 Investigation 1 | . 1 . . . Extermination . | . . . . . Reinforcement 3 | . 1 . 2 . Assault 2 | . . . . 2 Garrison 3 | . . . . 3 Intercept . | . . . . . Searches Triggered . | . . . . . Construction Impeded . | . . . . . Haulers Reinforced . | . . . . . Active Scanning Responses . | . . . . . Cargo Convoy Interrupts . | . . . . . Stealth | -11 -10 -10 -8 -8 --------- Run | Yrd Mat Sub Mat Sto Distress Signals 6 | . . . 5 1 Communications Jammed . | . . . . . Distress Signals . | . . . . . Times Spotted 67 | . 4 13 29 21 Peak Tracking Total 6 | . 2 2 6 6 Tactical Retreats 8 | . . 1 3 4 Traps | -11 -10 -10 -8 -8 ------- Run | Yrd Mat Sub Mat Sto Traps Triggered 1 | . 1 . . . Indirectly . | . . . . . Trap Hack Attempts . | . . . . . Triggered . | . . . . . Disarmed . | . . . . . Reprogrammed . | . . . . . Reused . | . . . . . Traps Extracted . | . . . . . Installed . | . . . . . Triggered . | . . . . . Machines | -11 -10 -10 -8 -8 ---------- Run | Yrd Mat Sub Mat Sto Machines Disabled 3 | . . . 1 2 Max in Single Turn 1 | . . . 1 1 Machines Repaired . | . . . . . Machines Dismantled . | . . . . . Machines Sabotaged . | . . . . . Overloaded Fab Kills . | . . . . . Hacking | -11 -10 -10 -8 -8 --------- Run | Yrd Mat Sub Mat Sto Machines Accessed 9 | . 1 2 4 2 Terminals 6 | . . . 4 2 Fabricators . | . . . . . Repair Stations . | . . . . . Recycling Units 1 | . 1 . . . Scanalyzers . | . . . . . Garrison Access . | . . . . . Total Hacks 24 | . 1 3 13 7 Successful 11 | . 1 3 3 4 Failed 13 | . . . 10 3 Catastrophic 4 | . . . 4 . Database Lockouts . | . . . . . Manual 15 | . 1 . 9 5 Terminals 20 | . . . 13 7 Fabricators . | . . . . . Repair Stations . | . . . . . Recycling Units 1 | . 1 . . . Scanalyzers . | . . . . . Garrison Access . | . . . . . Terminal Hacks 7 | . . 3 2 2 Record 1 | . . 1 . . Robot Analysis 1 | . . . 1 . Open Door 1 | . . 1 . . Branch Access Points 1 | . . . 1 . Transport Status 1 | . . . . 1 Hauler Manifests 1 | . . . . 1 Release Object 1 | . . 1 . . Fabricator Hacks . | . . . . . Repair Station Hacks . | . . . . . Recycling Unit Hacks . | . . . . . Scanalyzer . | . . . . . Garrison Access Hacks . | . . . . . Unauthorized Hacks 4 | . 1 . 1 2 Terminals 3 | . . . 1 2 Botnet 3 | . . . 1 2 Fabricators . | . . . . . Repair Stations . | . . . . . Recycling Units 1 | . 1 . . . Tunnel 1 | . 1 . . . Scanalyzers . | . . . . . Garrison Access . | . . . . . Data Cores Recovered . | . . . . . Used . | . . . . . Hacking Detections 6 | . . . 4 2 Full Trace Events . | . . . . . Feedback Events . | . . . . . Feedback Blocked . | . . . . . Robot Schematics Acquired . | . . . . . Robots Built . | . . . . . Authchips . | . . . . . Time . | . . . . . Total Robot Build Rating . | . . . . . Part Schematics Acquired . | . . . . . Parts Built . | . . . . . Authchips . | . . . . . Time . | . . . . . Total Part Build Rating . | . . . . . Parts Repaired . | . . . . . Time . | . . . . . Parts Recycled . | . . . . . Recycled Matter . | . . . . . Retrieved Matter . | . . . . . Retrieved Components . | . . . . . Parts Scanalyzed . | . . . . . Part Schematics Acquired . | . . . . . Parts Damaged . | . . . . . Bothacking | -11 -10 -10 -8 -8 ------------ Run | Yrd Mat Sub Mat Sto Used RIF Installer . | . . . . . Robots Hacked . | . . . . . Non-combat . | . . . . . Combat . | . . . . . Robot Hacks Applied . | . . . . . Relay Couplers Released . | . . . . . Fabnet Peak Effective % . | . . . . . Robots Rewired . | . . . . . Allies Hacked . | . . . . . Hacks Repelled . | . . . . . Allies | -11 -10 -10 -8 -8 -------- Run | Yrd Mat Sub Mat Sto Total Allies 2 | . . . . 2 Largest Group 2 | . . . . 2 Highest-Rated Group 62 | . . . . 62 Highest-Rated Ally 31 | . . . . 31 Total Orders . | . . . . . Ally Attacks 29 | . . . . 29 Total Damage 378 | . . . . 378 Kills 3 | . . . . 3 Allies Corrupted . | . . . . . Allies Melted . | . . . . . Intel | -11 -10 -10 -8 -8 ------- Run | Yrd Mat Sub Mat Sto Active Infowar (turns) 1491 | . . . 1036 455 Sensors 641 | . . . 641 . Structural 1254 | . . . 799 455 Seismic 437 | . . . . 437 Robot Analysis Total 1 | . . . 1 . Derelict Logs Recovered 2 | . . 2 . . Drone Launches . | . . . . . Drone Recoveries . | . . . . . Exploration | -11 -10 -10 -8 -8 ------------- Run | Yrd Mat Sub Mat Sto Turns Passed 2919 | 8 208 826 1414 463 Spaces Moved 1532 | 7 118 525 669 213 Core 6 | . . 2 4 . Treads 408 | . . 100 299 9 Legs 218 | 7 118 93 . . Wheels 900 | . . 330 366 204 Hover . | . . . . . Flight . | . . . . . Fastest Speed 80 | 120 120 80 80 105 Average Speed 131 | 120 120 114 149 124 Slowest Speed 950 | 120 120 250 950 240 Overloaded Moves . | . . . . . Propulsion Burnouts . | . . . . . Robots Hopped . | . . . . . Potential Cave-ins 2 | . . 2 . . Cave-ins Triggered 4 | . . 1 . 3 Exploration Rate (%) 22 | 2 20 32 34 23 Regions Visited 4 Branch Regions 2 Pre-discovered Areas 1 | . 1 . . . Known Exits Taken 1 | . . . 1 . Unknown Exits Taken 3 | 1 1 1 . . Scrap Searched . | . . . . . Spaces Dug 6 | . . . . 6 Terrain Destroyed 36 | . . . 6 30 Melee . | . . . . . Projectile 12 | . . . 6 6 AOE 24 | . . . . 24 Terrain Rammed . | . . . . . Walls Destroyed . | . . . . . Machines Disabled . | . . . . . Actions | -11 -10 -10 -8 -8 --------- Run | Yrd Mat Sub Mat Sto Total 2062 | 6 152 647 906 351 Wait 108 | . 6 24 30 48 Move 1527 | 6 117 523 668 213 Hop . | . . . . . Pick Up 59 | . 4 9 39 7 Fast Attach 27 | . 3 5 17 2 Attach 11 | . . 6 4 1 Detach 3 | . 1 . . 2 Swap 25 | . . 7 12 6 Drop 63 | . 4 13 35 11 Fire 234 | . 17 55 101 61 Melee . | . . . . . Ram . | . . . . . Kick . | . . . . . Crush . | . . . . . Escape Stasis 1 | . . 1 . . Rewire . | . . . . . Trap . | . . . . . Miscellaneous 4 | . . 4 . . Route ------- -11/Scrapyard -10/Materials -10/Subcaves -8/Materials -8/Storage History --------- Turn | Location | Event 1 | -11/Scrapyard | Discovered new exit (range 3) 9 | -11/Scrapyard | Entered Materials 146 | -10/Materials | Discovered new exit (range 10) 217 | -10/Materials | Entered Subcaves 229 | -10/Subcaves | Learned 2 Materials zone layouts 246 | -10/Subcaves | Learned Materials emergency access door positions 311 | -10/Subcaves | Build established: Mutant 620 | -10/Subcaves | Ambushed by Subdweller buried in earth 642 | -10/Subcaves | Crushed by falling debris 643 | -10/Subcaves | Core integrity fell below 50% 681 | -10/Subcaves | Discovered new exit (range 9) 747 | -10/Subcaves | A swath of the cavern ceiling suddenly collapsed 787 | -10/Subcaves | Core integrity fell below 20% 889 | -10/Subcaves | Ambushed by angry Subdweller bent on revenge 1043 | -10/Subcaves | Entered Materials 1043 | -8/Materials | Evolved 4 slots: Propulsion x2, Utility x2 1122 | -8/Materials | Build established: Scavenger-Mutant 1310 | -8/Materials | Lost 5 parts (1p2n1u1w) 2063 | -8/Materials | Build established: Scavenger-Skirmisher 2261 | -8/Materials | Identified exit to Storage 2457 | -8/Materials | Entered Storage 2494 | -8/Storage | Build established: Scavenger-Mutant 2554 | -8/Storage | Met a pair of Derelict thieves 2682 | -8/Storage | Garrison activated, responded to threat 2905 | -8/Storage | Crushed by falling debris 2905 | -8/Storage | Core integrity fell below 50% 2912 | -8/Storage | Crushed by falling debris 2912 | -8/Storage | Core integrity fell below 20% 2912 | -8/Storage | System corruption reached 10% 2921 | -8/Storage | Crushed by falling debris 2921 | -8/Storage | Smashed by cave-in Last Messages --------------- 02901_ System corrupted: Matter fused (-9). 02905_ The unstable cave ceiling collapses. 02905_ Crushed by falling debris. 02905_ Seismic Detector destroyed. 02905_ System corrupted by crushing effect (+4). 02905_ Imp. Ion Engine destroyed. 02905_ System corrupted by crushing effect (+1). 02908_ U-05 Engineer builds a Wall. 02912_ The unstable cave ceiling collapses. 02912_ Crushed by falling debris. 02912_ Arm. Wheel destroyed. 02912_ System corrupted by crushing effect (+5). 02912_ Structural Scanner destroyed. 02912_ System corrupted by crushing effect (+5). 02916_ System corrupted: Heat flow error (+122). 02917_ U-05 Engineer builds a Wall. 02921_ The unstable cave ceiling collapses. 02921_ Crushed by falling debris. 02921_ Mining Laser destroyed. 02921_ System corrupted by crushing effect (+1). Map ----- +----------------------------------------------------+ | ## [ ##???????????? | | """## = [ ##???????????? | | """ # ![%[=###??????????? | | """ # =!*%=###??????????? | | """## !=[%=!!T##??????????? | | """## !===[!!###??????????? | | ##%=*!*=|%###??????????? | | ##[!=*[!%*##???????????? | | ################+#############?? | | ################%#############?? | | %/==% ##?? | | =!/[######## ##?? | | =*[!######## ##?? | | ######## ########+###???###%#### | | ######## #### """ """???###+#### | | #???????????????" "?????##!*= ## | | ???????????????"" ""????"# [ ## | | ??????????????? ????"# ## | | ?????????????? ???"# ## | | ?????????????? ???## ## | | ?????????????? ???## ## | | ?????????????? ???## ## | | ??????????????############ ## | | ??????????????############ ## | | ?????????????????????## ######## | | ?????????????????????####@###### | | ?????????????????????#######???? | | ???????????????????????#####???? | | ???????????????????????????????? | | ???????????????????????????????? | | ???????????????????????????????? | | ???????????????????????????????? | | ???????????????????????????????? | | ???????????????????????????????? | | ???????????????????????????????? | | ???????????????????????????????? | | ???????????????????????????????? | | ???????????????????????????????? | | ???????????????????????????????? | | ???????????????????????????????? | | ???????????????????????????????? | | ???????????????????????????????? | | ???????????????????????????????? | | ???????????????????????????????? | | ???????????????????????????????? | | ???????????????????????????????? | | ???????????????????????????????? | | ???????????????????????????????? | | ???????????????????????????????? | | ???????????????????????????????? | +----------------------------------------------------+ Best States ------------- Heat Dissipation 45 Coolant Potential 100 Energy Generation 15 Energy Capacity 265 Matter Stores 300 Matter Capacity 300 Sight Range 16 Robot Scan Range 15 Terrain Scan Density 10 Armor Coverage 800 Evasion (%) 55 Recoil Reduction 4 Item Schematics ----------------- None Robot Schematics ------------------ None Fabricated ------------ Nothing Repaired ---------- Nothing Alien Tech Used ----------------- None Achievements -------------- None Challenges ------------ None Game ------ Seed HoverEnhancedCanceller Manual? 0 Play Time 00:25:11 Cumulative 200.8 hours Start 2025.05.06 @ 13:36:22 End 2025.05.06 @ 14:01:01 Sessions 1 Manual Loads 0 Difficulty Rogue Special Mode None Game No. 72 Rogue 72 Adventurer 0 Explorer 0 Win Type - Total 4 Types 1/0/2/0/0/0/0/0/0/1 Lore% 64 Gallery% 74 Achievement% 69 Wizard Run 0 Options --------- Layout 1 ASCII 0 Keyboard 1 Movement Arrows Keybinds 0 Fullscreen 2 Font 24/Smallcaps Map View 50x35 Zoom Use 0% Tactical HUD 1 Map Filters NONE Filters NONE Steam 1 RUN: 9016257f-ebfa-4c25-85f1-ff1e4fd59360